fUST/lending_fUST_20240309
["ID","MTS","AMOUNT","RATE_DAILY","PERIOD"]
[317737421,1709913639630,8886.33240945,0.00019,2]
[317737422,1709913639661,9000.0,0.00019,2]
[317737423,1709913639696,51927.78359055,0.00019,2]
[317737439,1709913903022,250.0,0.00018276,2]
[317737470,1709913981258,380.80636028,0.000189,2]
[317737472,1709914006689,409.360276,0.00018274,2]
[317737640,1709914234801,-188.41177765,0.00019152,2]
[317737642,1709914234817,-245.49930783,0.00019153,2]
[317737643,1709914234826,-558.21645623,0.00019154,2]
[317737645,1709914234835,-325.04224151,0.00019155,2]
[317737647,1709914234845,-294.72063723,0.00019156,2]
[317737649,1709914234855,-168.909684,0.00019178,2]
[317737651,1709914234865,-170.44986528,0.00019276,2]
[317737655,1709914234979,-166.5097194,0.00019373,2]
[317737656,1709914234996,-31090.63033773,0.00019375,2]
[317737736,1709914240212,-15736.53022249,0.00019375,2]
[317737738,1709914240226,-815.30627344,0.00019375,2]
[317737739,1709914240236,-24900.0,0.00019376,2]
[317737740,1709914240251,-2959.4852389,0.00019997,2]
[317737741,1709914240261,-193.34493299,0.0002,2]
[317737743,1709914240270,-152.6047267,0.0002,2]
[317737744,1709914240279,-238.84175043,0.0002,2]
[317737746,1709914240293,-170.44986526,0.00020484,2]
[317737748,1709914240302,-170.44986526,0.00021692,2]
[317737750,1709914240316,-186.5592323,0.00021918,2]
[317737752,1709914240326,-306.8430552,0.00021972,2]
[317737754,1709914240336,-153.0,0.00022,2]
[317737757,1709914240345,-153.0,0.00022192,2]
[317737760,1709914240355,-1348.94738353,0.00022639,2]
[317737762,1709914240365,-1491.76646025,0.00022639,2]
[317737765,1709914240375,-1491.76646018,0.00022668,2]
[317737767,1709914240384,-1491.76646018,0.00022697,2]
[317737771,1709914240395,-2000.0,0.000227,2]
[317737774,1709914240406,-300.0,0.000227,10]
[317737776,1709914240415,-1181.61836957,0.0002271,2]
[317737778,1709914240427,-818.38163043,0.0002271,2]
[317737780,1709914240436,-2000.0,0.0002272,2]
[317737782,1709914240445,-1491.76646018,0.00022726,2]
[317737784,1709914240455,-2000.0,0.0002273,2]
[317737786,1709914240464,-377.95190939,0.00022737,2]
[317737795,1709914240572,-1227.97191499,0.00022737,2]
[317737796,1709914240582,-179.6642469,0.00022737,2]
[317737798,1709914240591,-538.93657172,0.00022737,2]
[317737799,1709914240601,-1473.66141674,0.00022737,2]
[317737801,1709914240610,-290.38682753,0.00022737,2]
[317737803,1709914240620,-452.68743702,0.00022738,2]
[317737805,1709914240630,-155.88805604,0.00022738,2]
[317737806,1709914240639,-500.0,0.00022739,2]
[317737808,1709914240649,-560.83445176,0.00022739,2]
[317737809,1709914240660,-30.50554824,0.00022739,2]
[317737810,1709914240671,-500.0,0.00022739,2]
[317737812,1709914240681,-452.12528904,0.00022739,2]
[317737814,1709914240701,-47.87471096,0.00022739,2]
[317737816,1709914240712,-500.0,0.00022739,2]
[317737817,1709914240722,-443.46,0.00022739,2]
[317737819,1709914240732,-500.0,0.00022739,2]
[317737821,1709914240741,-369.23568428,0.00022739,2]
[317737823,1709914240750,-500.0,0.00022739,2]
[317737824,1709914240759,-500.0,0.00022739,2]
[317737825,1709914240769,-500.0,0.00022739,2]
[317737827,1709914240778,-500.0,0.00022739,2]
[317737829,1709914240788,-206.77533046,0.00022739,2]
[317737831,1709914240797,-500.0,0.00022739,2]
[317737833,1709914240806,-500.0,0.00022739,2]
[317737834,1709914240819,-500.0,0.00022739,2]
[317737836,1709914240829,-500.0,0.00022739,2]
[317737838,1709914240838,-500.0,0.00022739,2]
[317737839,1709914240847,-500.0,0.00022739,2]
[317737841,1709914240856,-500.0,0.00022739,2]
[317737843,1709914240866,-500.0,0.00022739,2]
[317737844,1709914240875,-500.0,0.00022739,2]
[317737846,1709914240884,-500.0,0.00022739,2]
[317737848,1709914240894,-500.0,0.00022739,2]
[317737850,1709914240903,-500.0,0.00022739,2]
[317737851,1709914240912,-500.0,0.00022739,2]
[317737853,1709914240922,-415.26380944,0.00022739,2]
[317737855,1709914240935,-84.73619056,0.00022739,2]
[317737857,1709914240944,-478.32353913,0.00022739,2]
[317737860,1709914240969,-21.67646087,0.00022739,2]
[317737861,1709914240978,-500.0,0.00022739,2]
[317737863,1709914240988,-500.0,0.00022739,2]
[317737864,1709914240998,-500.0,0.00022739,2]
[317737866,1709914241008,-500.0,0.00022739,2]
[317737868,1709914241019,-500.0,0.00022739,2]
[317737869,1709914241028,-500.0,0.00022739,2]
[317737870,1709914241038,-318.801992,0.00022739,2]
[317737871,1709914241073,-44.998008,0.00022739,2]
[317737872,1709914241082,-500.0,0.00022739,2]
[317737873,1709914241091,-500.0,0.00022739,2]
[317737874,1709914241100,-500.0,0.00022739,2]
[317737875,1709914241109,-500.0,0.00022739,2]
[317737876,1709914241118,-461.20554536,0.00022739,2]
[317737877,1709914241127,-500.0,0.00022739,2]
[317737878,1709914241136,-500.0,0.00022739,2]
[317737879,1709914241145,-403.19644664,0.00022739,2]
[317737880,1709914241157,-159.24512027,0.00022739,2]
[317737881,1709914241166,-95.69287978,0.00022739,2]
[317737882,1709914241179,-404.30712022,0.00022739,2]
[317737883,1709914241189,-622.24789916,0.00022739,2]
[317737884,1709914241199,-500.0,0.00022739,2]
[317737885,1709914241208,-500.0,0.00022739,2]
[317737886,1709914241219,-500.0,0.00022739,2]
[317737887,1709914241229,-500.0,0.00022739,2]
[317737888,1709914241239,-321.24498062,0.00022739,2]
[317737983,1709914243699,-300.2372625,0.00022738,2]
[317737984,1709914243713,-199.7627375,0.00022738,2]
[317737985,1709914243726,-500.0,0.00022738,2]
[317737986,1709914243738,-500.0,0.00022738,2]
[317737987,1709914243751,-320.44093844,0.00022738,2]
[317737988,1709914243763,-500.0,0.00022738,2]
[317737989,1709914243774,-268.50993668,0.00022738,2]
[317737990,1709914243787,-157.84449621,0.00022738,2]
[317737991,1709914243799,-500.0,0.00022738,2]
[317737992,1709914243810,-178.75501938,0.00022739,2]
[317737993,1709914243824,-500.0,0.00022739,2]
[317737994,1709914243836,-500.0,0.00022739,2]
[317737995,1709914243849,-500.0,0.00022739,2]
[317737996,1709914243860,-500.0,0.00022739,2]
[317737997,1709914243871,-121.22431826,0.00022739,2]
[317737998,1709914243884,-378.77568174,0.00022739,2]
[317737999,1709914243895,-500.0,0.00022739,2]
[317738000,1709914243907,-500.0,0.00022739,2]
[317738001,1709914243918,-586.96085562,0.00022739,2]
[317738002,1709914243930,-500.0,0.00022739,2]
[317738003,1709914243942,-500.0,0.00022739,2]
[317738004,1709914243953,-439.30532373,0.00022739,2]
[317738005,1709914243967,-60.69467627,0.00022739,2]
[317738006,1709914243978,-500.0,0.00022739,2]
[317738007,1709914243990,-500.0,0.00022739,2]
[317738008,1709914244002,-500.0,0.00022739,2]
[317738009,1709914244013,-463.44921148,0.00022739,2]
[317738010,1709914244041,-500.0,0.00022738,2]
[317738011,1709914244053,-36.55078852,0.00022739,2]
[317738012,1709914244064,-500.0,0.00022739,2]
[317738013,1709914244078,-500.0,0.00022739,2]
[317738014,1709914244089,-500.0,0.00022739,2]
[317738015,1709914244099,-169.33945411,0.00022739,2]
[317738016,1709914244109,-500.0,0.00022739,2]
[317738017,1709914244119,-500.0,0.00022739,2]
[317738018,1709914244129,-500.0,0.00022739,2]
[317738019,1709914244139,-500.0,0.00022739,2]
[317738020,1709914244151,-500.0,0.00022739,2]
[317738021,1709914244163,-500.0,0.00022739,2]
[317738022,1709914244174,-500.0,0.00022739,2]
[317738023,1709914244184,-500.0,0.00022739,2]
[317738024,1709914244194,-500.0,0.00022739,2]
[317738025,1709914244205,-500.0,0.00022739,2]
[317738026,1709914244216,-480.78220676,0.00022739,2]
[317738183,1709914250672,-155.06357607,0.00022737,2]
[317738186,1709914250683,-213.27804917,0.00022737,2]
[317738188,1709914250693,-204.58275653,0.00022737,2]
[317738190,1709914250702,-211.93787119,0.00022737,2]
[317738192,1709914250712,-8496.14409854,0.00022737,2]
[317738194,1709914250721,-256.89505367,0.00022737,2]
[317738195,1709914250730,-50.75379483,0.00022737,2]
[317738198,1709914250742,-104.36254242,0.00022737,2]
[317738200,1709914250751,-303.24150218,0.00022737,2]
[317738202,1709914250760,-155.06357607,0.00022737,2]
[317738203,1709914250770,-155.11944197,0.00022737,2]
[317738205,1709914250780,-155.12720431,0.00022737,2]
[317738207,1709914250789,-563.10577055,0.00022737,2]
[317738209,1709914250799,-181.58112489,0.00022737,2]
[317738212,1709914250809,-558.21645623,0.00022737,2]
[317738214,1709914250819,-500.0,0.00022738,2]
[317738216,1709914250833,-500.0,0.00022738,2]
[317738220,1709914250844,-500.0,0.00022738,2]
[317738223,1709914250853,-343.96194585,0.00022738,2]
[317738225,1709914250863,-155.12720431,0.00022738,2]
[317738227,1709914250872,-167.42263659,0.00022738,2]
[317738229,1709914250882,-634.93921734,0.00022738,2]
[317738230,1709914250891,-202.03030066,0.00022738,2]
[317738232,1709914250900,-422.56971318,0.00022738,2]
[317738234,1709914250910,-456.44937557,0.00022738,2]
[317738236,1709914250920,-294.72063723,0.00022738,2]
[317738237,1709914250930,-281.00149425,0.00022738,2]
[317738238,1709914250940,-420.3555564,0.00022738,2]
[317738267,1709914301717,262.67803637,0.00019898,7]
[317738413,1709914740982,14192.18404532,0.00019,2]
[317738425,1709914792185,24900.0,0.00019086,2]
[317740495,1709915187772,253.87090685,0.000189,2]
[317740560,1709915289126,24900.0,0.00018143,2]
[317740561,1709915306735,170.44986526,0.00019032,2]
[317740566,1709915408726,204.680138,0.00018126,2]
[317740629,1709915434785,-155.10547172,0.00019106,2]
[317740630,1709915434800,-325.04224151,0.00019106,2]
[317740631,1709915434810,-294.72063723,0.00019107,2]
[317740633,1709915434821,-155.10547172,0.00019108,2]
[317740635,1709915434831,-300.0,0.0001913,2]
[317740637,1709915434841,-27046.38897016,0.00019131,2]
[317740644,1709915434932,-20596.0778635,0.00019131,2]
[317740646,1709915434943,-9717.1882869,0.00019132,2]
[317740648,1709915434953,-167.399809,0.00019178,2]
[317740649,1709915434967,-674.64678067,0.00019519,2]
[317740651,1709915434977,-502.24832931,0.000199,2]
[317740653,1709915434988,-238.84175043,0.0002,2]
[317740655,1709915434998,-682.32366189,0.0002049,2]
[317740657,1709915435013,-622.73233903,0.00020495,2]
[317740660,1709915435024,-5975.3031,0.00021005,7]
[317740662,1709915435036,-620.13661695,0.00021519,2]
[317740664,1709915435048,-154.0,0.00022,2]
[317740666,1709915435059,-166.276254,0.00022187,2]
[317740667,1709915435069,-154.752193,0.00022187,2]
[317740669,1709915435080,-154.0,0.00022192,2]
[317740670,1709915435091,-200.9491361,0.00022246,2]
[317740671,1709915435102,-153.651142,0.00022251,2]
[317740672,1709915435113,-153.0,0.00022273,2]
[317740673,1709915435124,-153.0,0.00022273,2]
[317740674,1709915435136,-153.0,0.00022273,2]
[317740675,1709915435148,-153.0,0.00022273,2]
[317740676,1709915435159,-153.0,0.00022273,2]
[317740677,1709915435170,-153.0,0.00022273,2]
[317740678,1709915435182,-153.0,0.00022273,2]
[317740679,1709915435194,-153.0,0.00022273,2]
[317740680,1709915435205,-153.0,0.00022273,2]
[317740681,1709915435217,-153.0,0.00022273,2]
[317740682,1709915435228,-153.0,0.00022273,2]
[317740683,1709915435240,-200.9491361,0.00022273,2]
[317740684,1709915435255,-153.0,0.00022273,2]
[317740685,1709915435266,-153.0,0.00022273,2]
[317740686,1709915435277,-153.0,0.00022273,2]
[317740687,1709915435288,-200.9491361,0.00022273,2]
[317740688,1709915435299,-620.00683085,0.00022595,2]
[317740689,1709915435312,-151.0,0.00022638,2]
[317740690,1709915435323,-151.0,0.00022638,2]
[317740691,1709915435335,-151.0,0.00022638,2]
[317740692,1709915435346,-196.50110407,0.00022638,2]
[317740693,1709915435356,-268281.25047034,0.00022639,2]
[317740694,1709915435367,-1073.97868267,0.00022639,2]
[317740695,1709915435378,-1073.97868267,0.00022668,2]
[317740696,1709915435388,-1647.59889284,0.0002268,6]
[317740697,1709915435399,-1073.97868267,0.00022697,2]
[317740698,1709915435410,-2000.0,0.000227,2]
[317740699,1709915435422,-2000.0,0.0002271,2]
[317740700,1709915435433,-1773.7213801,0.00022714,2]
[317740701,1709915435444,-3050.08688683,0.00022714,2]
[317740702,1709915435454,-2000.0,0.0002272,2]
[317740703,1709915435465,-20357.0,0.0002272,3]
[317740704,1709915435477,-1073.97868267,0.00022726,2]
[317740705,1709915435488,-1000.0,0.00022727,2]
[317740706,1709915435499,-2000.0,0.0002273,2]
[317740707,1709915435512,-875.47035113,0.00022737,2]
[317740708,1709915435522,-1125.56401043,0.00022737,2]
[317740709,1709915435532,-310.06213178,0.00022737,2]
[317740710,1709915435547,-288.84294997,0.00022737,2]
[317740711,1709915435557,-171.02573591,0.00022737,2]
[317740712,1709915435567,-190.170623,0.00022737,2]
[317740713,1709915435579,-1794.55023703,0.00022737,2]
[317740714,1709915435591,-336.65324268,0.00022737,2]
[317740715,1709915435601,-155.99741446,0.00022737,2]
[317740716,1709915435612,-298.36842984,0.00022737,2]
[317740717,1709915435623,-2638.46577271,0.00022737,2]
[317740718,1709915435634,-155.23936152,0.00022737,2]
[317740719,1709915435645,-400.0,0.00022737,2]
[317740720,1709915435655,-238.57992796,0.00022737,2]
[317740721,1709915435665,-379.29767184,0.00022737,2]
[317740722,1709915435675,-5380.34283548,0.00022737,2]
[317740723,1709915435686,-191.73408661,0.00022737,2]
[317740724,1709915435697,-239.81327463,0.00022737,2]
[317740725,1709915435708,-186.33932523,0.00022737,2]
[317740726,1709915435719,-155.10461213,0.00022737,2]
[317740727,1709915435730,-176.31919157,0.00022737,2]
[317740728,1709915435740,-170.25466794,0.00022737,2]
[317740729,1709915435750,-2648.25059747,0.00022737,2]
[317740730,1709915435763,-1161.61704652,0.00022737,2]
[317740731,1709915435774,-273.85981902,0.00022737,2]
[317740732,1709915435785,-3940.26624856,0.00022737,2]
[317740733,1709915435795,-3094.02309808,0.00022737,2]
[317740734,1709915435806,-195.01782448,0.00022737,2]
[317740735,1709915435816,-177.58919152,0.00022737,2]
[317740736,1709915435827,-178.25670094,0.00022737,2]
[317740737,1709915435837,-185.16216027,0.00022737,2]
[317740738,1709915435847,-193.60334482,0.00022737,2]
[317740739,1709915435857,-365.28955153,0.00022737,2]
[317740740,1709915435867,-155.31781498,0.00022737,2]
[317740741,1709915435877,-283.03069035,0.00022737,2]
[317740742,1709915435887,-347.77838108,0.00022737,2]
[317740743,1709915435898,-256.16650602,0.00022737,2]
[317740744,1709915435908,-557.10753015,0.00022737,2]
[317740745,1709915435917,-245.98065434,0.00022737,2]
[317740746,1709915435927,-538.93657172,0.00022737,2]
[317740747,1709915435937,-261.84292742,0.00022737,7]
[317740748,1709915435947,-155.03108867,0.00022737,2]
[317740749,1709915435956,-9080.61703699,0.00022738,2]
[317740750,1709915435966,-181.49457554,0.00022738,2]
[317740751,1709915435975,-274.31127703,0.00022739,3]
[317740752,1709915435986,-155.11633725,0.00022739,2]
[317740753,1709915435997,-500.0,0.00022739,2]
[317740754,1709915436011,-500.0,0.00022739,2]
[317740755,1709915436021,-500.0,0.00022739,2]
[317740756,1709915436030,-500.0,0.00022739,2]
[317740757,1709915436040,-500.0,0.00022739,2]
[317740758,1709915436049,-500.0,0.00022739,2]
[317740759,1709915436058,-500.0,0.00022739,2]
[317740760,1709915436068,-500.0,0.00022739,2]
[317740761,1709915436078,-156.61476318,0.00022739,2]
[317740762,1709915436089,-500.0,0.00022739,2]
[317740763,1709915436099,-500.0,0.00022739,2]
[317740764,1709915436110,-500.0,0.00022739,2]
[317740765,1709915436121,-500.0,0.00022739,2]
[317740766,1709915436132,-500.0,0.00022739,2]
[317740767,1709915436144,-500.0,0.00022739,2]
[317740768,1709915436154,-500.0,0.00022739,2]
[317740769,1709915436164,-500.0,0.00022739,2]
[317740770,1709915436174,-500.0,0.00022739,2]
[317740771,1709915436184,-500.0,0.00022739,2]
[317740772,1709915436193,-279.57873614,0.00022739,2]
[317740773,1709915436203,-500.0,0.00022739,2]
[317740774,1709915436213,-528.84975671,0.00022739,2]
[317740775,1709915436223,-383.79843174,0.00022739,2]
[317740776,1709915436232,-564.77,0.00022739,2]
[317740777,1709915436243,-564.77,0.00022739,2]
[317740778,1709915436256,-564.77,0.00022739,2]
[317740779,1709915436269,-564.77,0.00022739,2]
[317740780,1709915436279,-564.77,0.00022739,2]
[317740781,1709915436289,-564.77,0.00022739,2]
[317740782,1709915436300,-564.77,0.00022739,2]
[317740783,1709915436310,-564.77,0.00022739,2]
[317740784,1709915436320,-564.77,0.00022739,2]
[317740785,1709915436331,-564.77,0.00022739,2]
[317740786,1709915436341,-564.77,0.00022739,2]
[317740787,1709915436352,-564.77,0.00022739,2]
[317740788,1709915436361,-564.77,0.00022739,2]
[317740789,1709915436370,-564.77,0.00022739,2]
[317740790,1709915436380,-564.77,0.00022739,2]
[317740791,1709915436390,-564.77,0.00022739,2]
[317740792,1709915436400,-564.77,0.00022739,2]
[317740793,1709915436409,-564.77,0.00022739,2]
[317740794,1709915436419,-564.77,0.00022739,2]
[317740795,1709915436429,-564.77,0.00022739,2]
[317740796,1709915436439,-564.77,0.00022739,2]
[317740797,1709915436448,-564.77,0.00022739,2]
[317740798,1709915436458,-564.77,0.00022739,2]
[317740799,1709915436467,-564.92198374,0.00022739,2]
[317740800,1709915436477,-621.85284441,0.00022739,2]
[317740801,1709915436486,-500.0,0.00022739,2]
[317740802,1709915436496,-500.0,0.00022739,2]
[317740803,1709915436509,-500.0,0.00022739,2]
[317740804,1709915436518,-500.0,0.00022739,2]
[317740805,1709915436527,-500.0,0.00022739,2]
[317740806,1709915436539,-500.0,0.00022739,2]
[317740807,1709915436549,-500.0,0.00022739,2]
[317740808,1709915436558,-500.0,0.00022739,2]
[317740809,1709915436568,-500.0,0.00022739,2]
[317740810,1709915436577,-517.22746166,0.00022739,2]
[317740811,1709915436589,-500.0,0.00022739,2]
[317740812,1709915436598,-500.0,0.00022739,2]
[317740813,1709915436608,-500.0,0.00022739,2]
[317740814,1709915436618,-162.80100322,0.00022739,2]
[317740815,1709915436628,-500.0,0.00022739,2]
[317740816,1709915436639,-500.0,0.00022739,2]
[317740817,1709915436649,-506.55716106,0.00022739,2]
[317740818,1709915436659,-795.41,0.00022739,2]
[317740819,1709915436669,-795.41,0.00022739,2]
[317740820,1709915436679,-795.41,0.00022739,2]
[317740821,1709915436689,-795.41,0.00022739,2]
[317740822,1709915436699,-795.41,0.00022739,2]
[317740823,1709915436708,-795.41,0.00022739,2]
[317740824,1709915436718,-795.41,0.00022739,2]
[317740825,1709915436727,-795.41,0.00022739,2]
[317740826,1709915436737,-795.41,0.00022739,2]
[317740827,1709915436746,-795.41,0.00022739,2]
[317740828,1709915436759,-795.41,0.00022739,2]
[317740829,1709915436769,-795.41,0.00022739,2]
[317740830,1709915436779,-795.41,0.00022739,2]
[317740831,1709915436788,-795.41,0.00022739,2]
[317740832,1709915436797,-500.0,0.00022739,2]
[317740833,1709915436807,-795.41,0.00022739,2]
[317740834,1709915436816,-795.41,0.00022739,2]
[317740835,1709915436826,-500.0,0.00022739,2]
[317740836,1709915436835,-374.01965853,0.00022739,2]
[317740837,1709915436844,-795.41,0.00022739,2]
[317740838,1709915436853,-795.41,0.00022739,2]
[317740839,1709915436863,-795.41,0.00022739,2]
[317740840,1709915436872,-795.41,0.00022739,2]
[317740841,1709915436882,-795.41,0.00022739,2]
[317740842,1709915436891,-1082.13,0.00022739,2]
[317740843,1709915436901,-795.41,0.00022739,2]
[317740844,1709915436910,-1082.13,0.00022739,2]
[317740845,1709915436919,-795.41,0.00022739,2]
[317740846,1709915436928,-1082.13,0.00022739,2]
[317740847,1709915436938,-795.4624394,0.00022739,2]
[317740848,1709915437033,-1082.13,0.00022739,2]
[317740849,1709915437044,-1082.13,0.00022739,2]
[317740850,1709915437054,-1082.13,0.00022739,2]
[317740851,1709915437064,-1082.13,0.00022739,2]
[317740852,1709915437074,-1082.13,0.00022739,2]
[317740853,1709915437084,-1082.13,0.00022739,2]
[317740854,1709915437094,-1082.13,0.00022739,2]
[317740855,1709915437103,-1082.13,0.00022739,2]
[317740856,1709915437113,-1082.13,0.00022739,2]
[317740857,1709915437122,-1082.13,0.00022739,2]
[317740858,1709915437131,-1082.13,0.00022739,2]
[317740859,1709915437141,-1082.13,0.00022739,2]
[317740860,1709915437150,-1082.13,0.00022739,2]
[317740861,1709915437159,-1082.13,0.00022739,2]
[317740862,1709915437168,-1082.13,0.00022739,2]
[317740863,1709915437178,-1082.13,0.00022739,2]
[317740864,1709915437187,-1082.13,0.00022739,2]
[317740865,1709915437197,-1082.13,0.00022739,2]
[317740866,1709915437207,-1082.13,0.00022739,2]
[317740867,1709915437217,-1082.13,0.00022739,2]
[317740868,1709915437227,-1082.30425601,0.00022739,2]
[317740869,1709915437237,-500.0,0.00022739,2]
[317740870,1709915437248,-500.0,0.00022739,2]
[317740871,1709915437261,-500.0,0.00022739,2]
[317740872,1709915437271,-500.0,0.00022739,2]
[317740873,1709915437281,-500.0,0.00022739,2]
[317740874,1709915437292,-500.0,0.00022739,2]
[317740875,1709915437303,-569.03043624,0.00022739,2]
[317740876,1709915437312,-500.0,0.00022739,2]
[317740877,1709915437322,-500.0,0.00022739,2]
[317740878,1709915437332,-500.0,0.00022739,2]
[317740879,1709915437343,-500.0,0.00022739,2]
[317740880,1709915437353,-500.0,0.00022739,2]
[317740881,1709915437363,-500.0,0.00022739,2]
[317740882,1709915437373,-500.0,0.00022739,2]
[317740883,1709915437382,-500.0,0.00022739,2]
[317740884,1709915437392,-500.0,0.00022739,2]
[317740885,1709915437401,-500.0,0.00022739,2]
[317740886,1709915437411,-500.0,0.00022739,2]
[317740887,1709915437421,-500.0,0.00022739,2]
[317740888,1709915437432,-500.0,0.00022739,2]
[317740889,1709915437442,-500.0,0.00022739,2]
[317740890,1709915437452,-500.0,0.00022739,2]
[317740891,1709915437461,-500.0,0.00022739,2]
[317740892,1709915437471,-500.0,0.00022739,2]
[317740893,1709915437481,-500.0,0.00022739,2]
[317740894,1709915437491,-500.0,0.00022739,2]
[317740895,1709915437500,-500.0,0.00022739,2]
[317740896,1709915437515,-500.0,0.00022739,2]
[317740897,1709915437525,-500.0,0.00022739,2]
[317740898,1709915437535,-500.0,0.00022739,2]
[317740899,1709915437547,-500.0,0.00022739,2]
[317740900,1709915437558,-500.0,0.00022739,2]
[317740901,1709915437566,-500.0,0.00022739,2]
[317740902,1709915437575,-500.0,0.00022739,2]
[317740903,1709915437586,-500.0,0.00022739,2]
[317740904,1709915437596,-500.0,0.00022739,2]
[317740906,1709915437606,-500.0,0.00022739,2]
[317740908,1709915437615,-500.0,0.00022739,2]
[317740910,1709915437624,-500.0,0.00022739,2]
[317740911,1709915437634,-500.0,0.00022739,2]
[317740913,1709915437643,-500.0,0.00022739,2]
[317740915,1709915437653,-500.0,0.00022739,2]
[317740916,1709915437663,-500.0,0.00022739,2]
[317740917,1709915437672,-372.60697369,0.00022739,2]
[317740918,1709915437682,-500.0,0.00022739,2]
[317740919,1709915437692,-500.0,0.00022739,2]
[317740921,1709915437701,-500.0,0.00022739,2]
[317740922,1709915437710,-553.67483685,0.00022739,2]
[317740923,1709915437719,-500.0,0.00022739,2]
[317740924,1709915437728,-500.0,0.00022739,2]
[317740925,1709915437737,-500.0,0.00022739,2]
[317740926,1709915437746,-511.17078359,0.00022739,2]
[317740927,1709915437760,-644.75627118,0.00022739,2]
[317740928,1709915437769,-583.28282243,0.00022739,2]
[317740929,1709915437779,-167.45120803,0.00022739,2]
[317740930,1709915437788,-500.0,0.00022739,2]
[317740931,1709915437797,-500.0,0.00022739,2]
[317740932,1709915437806,-529.18119048,0.00022739,2]
[317740933,1709915437815,-286.21308106,0.00022739,2]
[317740934,1709915437824,-500.0,0.00022739,2]
[317740935,1709915437835,-500.35153087,0.00022739,2]
[317740936,1709915437845,-500.0,0.00022739,2]
[317740937,1709915437855,-500.0,0.00022739,2]
[317740938,1709915437864,-500.0,0.00022739,2]
[317740939,1709915437873,-500.0,0.00022739,2]
[317740940,1709915437883,-500.0,0.00022739,2]
[317740941,1709915437891,-500.0,0.00022739,2]
[317740942,1709915437901,-500.0,0.00022739,2]
[317740944,1709915437910,-500.0,0.00022739,2]
[317740946,1709915437919,-500.0,0.00022739,2]
[317740948,1709915437928,-500.0,0.00022739,2]
[317740950,1709915437937,-500.0,0.00022739,2]
[317740952,1709915437947,-500.0,0.00022739,2]
[317740954,1709915437956,-500.0,0.00022739,2]
[317740956,1709915437965,-500.0,0.00022739,2]
[317740958,1709915437975,-500.0,0.00022739,2]
[317740960,1709915437984,-500.0,0.00022739,2]
[317740962,1709915437993,-500.0,0.00022739,2]
[317740964,1709915438002,-500.0,0.00022739,2]
[317740966,1709915438014,-500.0,0.00022739,2]
[317740968,1709915438023,-289.89389681,0.00022739,2]
[317740970,1709915438032,-500.0,0.00022739,2]
[317740972,1709915438042,-500.0,0.00022739,2]
[317740974,1709915438051,-500.0,0.00022739,2]
[317740976,1709915438060,-374.94,0.00022739,2]
[317740978,1709915438069,-500.0,0.00022739,2]
[317740980,1709915438079,-500.0,0.00022739,2]
[317740982,1709915438088,-500.0,0.00022739,2]
[317740984,1709915438097,-500.0,0.00022739,2]
[317740986,1709915438106,-500.0,0.00022739,2]
[317740988,1709915438116,-500.0,0.00022739,2]
[317740990,1709915438124,-500.0,0.00022739,2]
[317740992,1709915438133,-317.41386845,0.00022739,2]
[317740994,1709915438143,-500.0,0.00022739,2]
[317740996,1709915438153,-500.0,0.00022739,2]
[317740998,1709915438163,-500.0,0.00022739,2]
[317741000,1709915438173,-500.21242779,0.00022739,2]
[317741002,1709915438182,-151.0,0.00022739,2]